Cogmind - Beta 14 @@@ ROGUE MODE // 2024.08.11 @ 18:19:51 Player: f3-rnm Result: Destroyed self with Grenade Launcher Performance ------------- Evolutions (0) 0 Regions Visited (2) 400 Robots Destroyed (17) 85 Value Destroyed (549) 549 Prototype IDs (0) 0 Alien Tech Used (0) 0 Bonus (0) 0 TOTAL SCORE: 1034 Bonus ------- None Cogmind --------- Core Integrity 0/250 Matter 175/300 Energy 125/125 System Corruption 1% Temperature Cool (0) Movement Core (1500) Ox29 Location -10/Subcaves Parts ------- > --- POWER (1) -------- Light Ion Engine > --- PROPULSION (2) --- (None) > --- UTILITY (2) ------ Huge Storage Unit > --- WEAPON (2) ------- Grenade Launcher Grenade Launcher > --- INVENTORY (25) --- Light Ion Engine Light Treads Aluminum Leg Aluminum Leg Aluminum Leg Compact Wheel Compact Wheel Small Storage Unit High-capacity Storage Unit Large Matter Pod (48) Seismic Detector Targeting Computer Targeting Computer Propulsion Shielding Propulsion Shielding Utility Shielding Tractor Beam Medium Laser Small Laser Small Laser Beam Rifle Light Assault Rifle Peak State ------------ > --- POWER ------------ Light Nuclear Core > --- PROPULSION ------- Light Treads Light Treads > --- UTILITY ---------- Huge Storage Unit > --- WEAPON ----------- Medium Laser Light Assault Rifle > --- INVENTORY -------- Light Ion Engine Light Ion Engine Light Treads Light Treads Aluminum Leg Aluminum Leg Compact Wheel Compact Wheel Small Storage Unit High-capacity Storage Unit Large Matter Pod Seismic Detector Targeting Computer Targeting Computer Propulsion Shielding Propulsion Shielding Tractor Beam Medium Laser Grenade Launcher Grenade Launcher [Rating: 10] Favorites ----------- Power Light Ion Engine Engine Light Ion Engine Power Core Light Nuclear Core Propulsion Light Treads Treads Light Treads Utility Huge Storage Unit Storage Huge Storage Unit Weapon Light Assault Rifle Energy Gun Medium Laser Ballistic Gun Light Assault Rifle Launcher Grenade Launcher Build | -11 -10 -10 ------- Run | Yrd Mat Sub Slots Evolved . | . . . Power . | . . . Propulsion . | . . . Utility . | . . . Weapon . | . . . Parts Attached 15 | 6 5 4 Power 3 | 1 1 1 Engine 2 | 1 . 1 Core 1 | . 1 . Reactor . | . . . Propulsion 4 | 2 1 1 Treads 4 | 2 1 1 Leg . | . . . Wheel . | . . . Hover . | . . . Flight . | . . . Utility 2 | 1 1 . Device . | . . . Storage 2 | 1 1 . Processor . | . . . Hackware . | . . . Protection . | . . . Artifact . | . . . Weapon 6 | 2 2 2 Energy Gun 1 | . 1 . Energy Cannon . | . . . Ballistic Gun 3 | 2 1 . Ballistic Cannon . | . . . Launcher 2 | . . 2 Special Weapon . | . . . Impact Weapon . | . . . Slashing Weapon . | . . . Piercing Weapon . | . . . Special Melee Weapon . | . . . Unidentified Prototypes . | . . . Parts Lost 9 | . 6 3 Power 2 | . 2 . Propulsion 4 | . 2 2 Utility . | . . . Weapon 3 | . 2 1 Highest Loss Streak 2 | . 2 1 To Critical Strikes . | . . . Average Slot Usage (%) 80 | . 80 81 Engine 6 | . 4 14 Core 6 | . 8 . Treads 26 | . 27 24 Storage 14 | . 14 14 Energy Gun 7 | . 6 8 Ballistic Gun 16 | . 18 8 Launcher 2 | . . 11 Peak Build Rating 10 | 6 10 8 Average Rating 7 | 4 8 7 On Entrance 4 | . 6 6 Naked Turns . | . . . Heaviest Build 89 | 11 88 89 Greatest Support 40 | 40 40 40 Greatest Overweight (x) 4 | . 4 4 Average Overweight (x) 1 | . 1 2 Largest Inventory Capacity 25 | 8 25 25 Average Capacity 22 | 6 23 25 Most Carried 24 | 3 24 23 Average Carried 17 | 1 16 21 Final Capacity 25 | 8 25 25 Final Carried 23 | 3 23 22 Class Distribution -------------------- 100% | Mutant Dominant Class ---------------- Mutant | -10/Materials Mutant | -10/Subcaves Resources | -11 -10 -10 ----------- Run | Yrd Mat Sub Matter Collected 506 | 143 294 69 Remotely . | . . . Salvage Created 593 | 15 487 91 Parts 31 | 3 19 9 Haulers Intercepted 2 | . 2 . Recyclers Shooed . | . . . Parts Field Recycled . | . . . Retrieved Matter . | . . . Parts Self-Destructed 8 | . . 8 Prevented . | . . . Kills | -11 -10 -10 ------- Run | Yrd Mat Sub Combat Hostiles Destroyed 14 | . 10 4 Guns 11 | . 10 1 AOE 3 | . . 3 Classes Destroyed 5 | 1 2 2 Worker 1 | 1 . . Hauler 2 | . 2 . Grunt 10 | . 10 . Sentry 1 | . . 1 Subdweller 3 | . . 3 Best Kill Streak 2 | 1 2 2 Combat Bots Only 2 | . 2 2 Max Kills in Single Turn 1 | 1 1 1 Gunslinging . | . . . Exploded 1 | . . 1 Melee . | . . . Uniques/NPCs Destroyed . | . . . Combat | -11 -10 -10 -------- Run | Yrd Mat Sub Hostile Shots Fired 119 | . 96 23 Missed 37 | . 29 8 Damage Taken 1327 | . 959 368 Core 261 | . 161 100 Absorbed by Shields . | . . . Core Remaining (%) 100 | 100 . . Volleys Fired 71 | 1 61 9 Largest 2 | 2 2 2 Hottest 70 | 40 70 70 Shots Fired 128 | 2 109 17 Gun 115 | 2 109 4 Cannon . | . . . Launcher 13 | . . 13 Special . | . . . Kinetic 88 | 2 84 2 Thermal 27 | . 25 2 Explosive 13 | . . 13 Electromagnetic . | . . . Robot Hit Streak 9 | 1 9 9 Robot Miss Streak 4 | . 4 . Penetration Max . | . . . Secondary Targets . | . . . Shots Hit Robots 76 | 1 67 8 Core Hits 40 | 1 31 8 Critical Kills . | . . . Critical Parts Destroyed 1 | . 1 . Critical Strikes 2 | . 2 . Burn 1 | . 1 . Destroy 1 | . 1 . Melee Attacks . | . . . Impact . | . . . Slashing . | . . . Piercing . | . . . Sneak Attacks . | . . . Combat Hostiles . | . . . Follow-up Attacks . | . . . Damage Inflicted 1235 | 14 708 513 Guns 751 | 14 706 31 Cannons . | . . . Explosions 482 | . . 482 Melee . | . . . Ramming 2 | . 2 . Kinetic 587 | 14 567 6 Thermal 164 | . 139 25 Explosive 482 | . . 482 Electromagnetic . | . . . Impact . | . . . Slashing . | . . . Piercing . | . . . Highest Corruption 1 | . 1 1 Average Corruption 1 | . 1 1 Corruption Purged . | . . . Corruption Blocked . | . . . Effects 13 | . 8 5 Message Errors 2 | . 1 1 Matter Fused 2 | . 2 . Heat Flow Errors 2 | . 2 . Energy Discharges 2 | . 1 1 Data Loss (minor) 3 | . 2 1 Data Loss (major) 1 | . . 1 Alerts 1 | . . 1 Overload Shots . | . . . Overflow Damage 27 | . . 27 Projectiles . | . . . Explosions 27 | . . 27 Melee . | . . . Knockbacks . | . . . Impact . | . . . Kinetic . | . . . Secondary . | . . . Self-Inflicted Damage 66 | . . 66 Shots 3 | . . 3 Rammed 1 | . 1 . Targets Rammed 1 | . 1 . Kicked . | . . . Crushed . | . . . Highest Temperature 484 | . 484 4 Average Temperature 142 | . 143 4 Received Heat Transfer 633 | . 570 63 Effects 2 | . 2 . Shutdowns 1 | . 1 . Energy Bleed 1 | . 1 . Siege Activations . | . . . Robots Corrupted . | . . . Combat Hostiles . | . . . Parts Fried . | . . . Impact Corruptions . | . . . Robots Melted . | . . . Combat Hostiles . | . . . Parts Melted 2 | . 2 . Heat Transferred 555 | . 481 74 Parts Sabotaged . | . . . Parts Stolen . | . . . Parts Stripped . | . . . Power Chain Reactions . | . . . Alert | -11 -10 -10 ------- Run | Yrd Mat Sub Peak Influence 105 | 5 105 . Initial 3 | . 3 . Average 24 | . 25 . Maximum Alert Level . | . . . Low Security (%) 100 | 100 100 . Level 1 . | . . . Level 2 . | . . . Level 3 . | . . . Level 4 . | . . . Level 5 . | . . . High Security . | . . . Max Security . | . . . Squads Dispatched 1 | . 1 . Investigation 1 | . 1 . Extermination . | . . . Reinforcement . | . . . Assault . | . . . Garrison . | . . . Intercept . | . . . Searches Triggered . | . . . Construction Impeded . | . . . Haulers Reinforced . | . . . Active Scanning Responses . | . . . Cargo Convoy Interrupts . | . . . Stealth | -11 -10 -10 --------- Run | Yrd Mat Sub Distress Signals 1 | . 1 . Communications Jammed . | . . . Distress Signals . | . . . Times Spotted 29 | . 25 4 Peak Tracking Total 5 | . 5 2 Tactical Retreats . | . . . Traps | -11 -10 -10 ------- Run | Yrd Mat Sub Traps Triggered 2 | . 2 . Indirectly . | . . . Trap Hack Attempts . | . . . Triggered . | . . . Disarmed . | . . . Reprogrammed . | . . . Reused . | . . . Traps Extracted . | . . . Installed . | . . . Triggered . | . . . Machines | -11 -10 -10 ---------- Run | Yrd Mat Sub Machines Disabled . | . . . Max in Single Turn . | . . . Machines Repaired . | . . . Machines Dismantled . | . . . Machines Sabotaged . | . . . Overloaded Fab Kills . | . . . Hacking | -11 -10 -10 --------- Run | Yrd Mat Sub Machines Accessed . | . . . Terminals . | . . . Fabricators . | . . . Repair Stations . | . . . Recycling Units . | . . . Scanalyzers . | . . . Garrison Access . | . . . Total Hacks . | . . . Successful . | . . . Failed . | . . . Catastrophic . | . . . Database Lockouts . | . . . Manual . | . . . Terminals . | . . . Fabricators . | . . . Repair Stations . | . . . Recycling Units . | . . . Scanalyzers . | . . . Garrison Access . | . . . Terminal Hacks . | . . . Fabricator Hacks . | . . . Repair Station Hacks . | . . . Recycling Unit Hacks . | . . . Scanalyzer . | . . . Garrison Access Hacks . | . . . Unauthorized Hacks . | . . . Terminals . | . . . Fabricators . | . . . Repair Stations . | . . . Recycling Units . | . . . Scanalyzers . | . . . Garrison Access . | . . . Data Cores Recovered . | . . . Used . | . . . Hacking Detections . | . . . Full Trace Events . | . . . Feedback Events . | . . . Feedback Blocked . | . . . Robot Schematics Acquired . | . . . Robots Built . | . . . Authchips . | . . . Time . | . . . Total Robot Build Rating . | . . . Part Schematics Acquired . | . . . Parts Built . | . . . Authchips . | . . . Time . | . . . Total Part Build Rating . | . . . Parts Repaired . | . . . Time . | . . . Parts Recycled . | . . . Recycled Matter . | . . . Retrieved Matter . | . . . Retrieved Components . | . . . Parts Scanalyzed . | . . . Part Schematics Acquired . | . . . Parts Damaged . | . . . Bothacking | -11 -10 -10 ------------ Run | Yrd Mat Sub Used RIF Installer . | . . . Robots Hacked . | . . . Non-combat . | . . . Combat . | . . . Robot Hacks Applied . | . . . Relay Couplers Released . | . . . Fabnet Peak Effective % . | . . . Robots Rewired . | . . . Allies Hacked . | . . . Hacks Repelled . | . . . Allies | -11 -10 -10 -------- Run | Yrd Mat Sub Total Allies . | . . . Largest Group . | . . . Highest-Rated Group . | . . . Highest-Rated Ally . | . . . Total Orders . | . . . Ally Attacks . | . . . Total Damage . | . . . Kills . | . . . Allies Corrupted . | . . . Allies Melted . | . . . Intel | -11 -10 -10 ------- Run | Yrd Mat Sub Robot Analysis Total . | . . . Derelict Logs Recovered 1 | . . 1 Drone Launches . | . . . Drone Recoveries . | . . . Exploration | -11 -10 -10 ------------- Run | Yrd Mat Sub Turns Passed 2600 | 104 2030 466 Spaces Moved 796 | 58 619 119 Core 2 | 2 . . Treads 794 | 56 619 119 Legs . | . . . Wheels . | . . . Hover . | . . . Flight . | . . . Fastest Speed 50 | 50 160 320 Average Speed 295 | 156 297 353 Slowest Speed 480 | 160 480 480 Overloaded Moves . | . . . Propulsion Burnouts . | . . . Robots Hopped . | . . . Cave-ins Triggered . | . . . Exploration Rate (%) 35 | 4 90 13 Regions Visited 2 Branch Regions 1 Pre-discovered Areas . | . . . Known Exits Taken . | . . . Unknown Exits Taken 2 | 1 1 . Scrap Searched . | . . . Spaces Dug . | . . . Terrain Destroyed 52 | . . 52 Melee . | . . . Projectile . | . . . AOE 52 | . . 52 Terrain Rammed . | . . . Walls Destroyed . | . . . Machines Disabled . | . . . Actions | -11 -10 -10 --------- Run | Yrd Mat Sub Total 929 | 67 713 149 Wait 19 | . 4 15 Move 794 | 57 618 119 Hop . | . . . Pick Up 28 | 3 23 2 Fast Attach 7 | 6 1 . Attach 7 | . 4 3 Detach 1 | . 1 . Swap 1 | . . 1 Drop . | . . . Fire 71 | 1 61 9 Melee . | . . . Ram . | . . . Kick . | . . . Crush 1 | . 1 . Escape Stasis . | . . . Rewire . | . . . Trap . | . . . Miscellaneous . | . . . Route ------- -11/Scrapyard -10/Materials (discovered 5 exits: [*Mat x2] / [*Min x2] / [*Sub]) -10/Subcaves (discovered 1 exit: [*Mat]) History --------- Turn | Location | Event 17 | -11/Scrapyard | Discovered new exit (range 15) 105 | -11/Scrapyard | Entered Materials 235 | -10/Materials | Discovered new exit (range 13) 328 | -10/Materials | Build established: Mutant 471 | -10/Materials | Discovered new exit (range 10) 583 | -10/Materials | Discovered new exit (range 8) 1626 | -10/Materials | Discovered new exit (range 13) 1986 | -10/Materials | Core integrity fell below 50% 2101 | -10/Materials | Discovered new exit (range 8) 2135 | -10/Materials | Entered Subcaves 2176 | -10/Subcaves | Discovered new exit (range 12) 2275 | -10/Subcaves | Learned 2 Materials zone layouts 2407 | -10/Subcaves | Core integrity fell below 20% 2601 | -10/Subcaves | Destroyed self with Grenade Launcher Last Messages --------------- 02365_ Lgt. Armor Plating fries itself beyond repair. 02367_ Lgt. Treads fries itself beyond repair. 02368_ Subatomizers dissect the Heat Sink. 02369_ Heat Sink fries itself beyond repair. 02370_ Acquired Lgt. Treads. 02371_ Acquired 59 matter. 02384_ System corrupted: Component data lost. 02408_ Med. Laser destroyed. 02418_ CN-1R7(R) destroyed. 02422_ Subatomizers dissect the Sub. Optics, destroying it. 02425_ System corrupted: IFF burst signal emitted. 02444_ Acquired 10 matter. 02456_ The unstable cave ceiling collapses. 02476_ Lgt. Treads destroyed. 02480_ The unstable cave ceiling collapses. 02495_ W2 SJGBUJP/XOY# M8X7#EKQHAW& 02507_ VR-ILN(R) destroyed. 02514_ The unstable cave ceiling collapses. 02601_ Lgt. Treads destroyed. 02601_ Destroyed Lgt. Treads. Map ----- +----------------------------------------------------+ | ?????????????????????????????????????????????????? | | ?????????????????????????????????????????????????? | | ?????????????????????????????????????????????????? | | ?????????????????????????????????????????????????? | | ?????????????????????????????????????????????????? | | ?????????????????????????????????????????????????? | | ?????????????????????????????????????????????????? | | ?????????????????????????????????????????????????? | | ?????????????????????????????????????????????????? | | ?????????????????????????????????????????????????? | | ?????????????????????????????????????????????????? | | ?????????????????????????????????????????????????? | | ??#?????????????????????????????????????????????? | | ## ????????????????????????????????????????????? | | ???????????????????????????????????????????? | | ?# ########???????????????????????????????????? | | ??# ########????????????????????????????? | | ??# # ######???????????????????????? | | ?## # # # ###?????????????????????? | | ?# " #?????????????????????? | | ????????# & "" ##?????????????????????? | | ????????### "## ## #?????????????????????? | | ?????????# ###### "#?????????????????????? | | ?????????## # " "###????????????????????? | | ??????????# ## "" ""#????????????????????? | | ? ????????# & #"## @""#????????????????????? | | ???????# #### """#???????????????????? | | ####??# # # #??#"""""""#??????????????????? | | #?# #?#""""#####??????????????????? | | ??# # # # #?#"""##??????????????????????? | | ??# ## # ##?#####???????????????????????? | | ??# ##??????????????????????????????? | | ### ##???????????????????????????????? | | # #???????????????????????????????? | | # #???????????????????????????????? | | #???????????????????????????????? | | #???????????????????????????????? | | ##???????????????????????????????? | | ##????????????????????????????????? | | #### #?????????????????????????????????? | | #### #???# ##????????????????????????????????? | | ???# #????# ##???????????????????????????????? | | ???##?????## #???????????????????????????????? | | ???###?????## #???????????????????????????????? | | #### ####### #???????????????????????????????? | | #???????????????????????????????? | | ##???????????????????????????????? | | # # ####????????????????????????????????? | | # # #???????????????????????????????????? | | #???????????????????????????????????? | +----------------------------------------------------+ Best States ------------- Heat Dissipation 25 Energy Generation 14 Energy Capacity 160 Matter Stores 300 Matter Capacity 300 Sight Range 16 Terrain Scan Density 10 Evasion (%) 40 Recoil Reduction 2 Item Schematics ----------------- None Robot Schematics ------------------ None Fabricated ------------ Nothing Alien Tech Used ----------------- None Achievements -------------- None Challenges ------------ None Game ------ Seed DeuteriumMiningKit Manual? 0 Play Time 00:08:21 Cumulative 226.6 hours Start 2024.08.11 @ 18:12:17 End 2024.08.11 @ 18:19:51 Sessions 1 Manual Loads 0 Difficulty Rogue Special Mode None Game No. 237 Rogue 201 Adventurer 36 Explorer 0 Win Type - Total 10 Types 3/0/7/0/0/0/0/0/0 Lore% 59 Gallery% 81 Achievement% 71 Wizard Run 0 Options --------- Layout 0 ASCII 0 Keyboard 0 Movement Mouse Keybinds 0 Fullscreen 1 Font 18/SmallcapsGlow Map View 76x50 Zoom Use 0% Tactical HUD 1 Map Filters NONE Filters NONE Steam 1 RUN: 66475845-6342-4316-a154-d90692561e3b